bitfinex/quotes_SOLUSD_20230702
["timestamp","ask_amount","ask_price","bid_price","bid_amount"]
[1688273891489,56.188,19.382,19.368,21.839]
[1688273891693,21.828,19.379,19.368,21.839]
[1688273892472,21.828,19.379,19.364,14.87508]
[1688273892695,55.0,19.378,19.355,56.263]
[1688273892991,21.836,19.372,19.358,56.255]
[1688273893181,21.836,19.372,19.356,14.88122]
[1688273894084,21.836,19.372,19.355,102.657]
[1688273894085,21.836,19.372,19.357,14.88045]
[1688273896396,21.836,19.372,19.357,25.71764922]
[1688273896584,21.836,19.372,19.358,10.83719922]
[1688273897281,21.836,19.372,19.359,14.87892]
[1688273899697,21.836,19.372,19.359,25.71611922]
[1688273899897,21.836,19.372,19.36,10.83719922]
[1688273901204,21.836,19.372,19.361,14.87738]
[1688273902104,21.836,19.372,19.361,25.71457922]
[1688273902391,21.836,19.372,19.362,10.83719922]
[1688273902594,21.836,19.372,19.362,25.71380922]
[1688273903090,56.193,19.38,19.362,25.71380922]
[1688273903489,21.832,19.376,19.363,41.845]
[1688273903905,21.832,19.376,19.367,21.84]
[1688273904285,21.832,19.376,19.368,32.67619922]
[1688273905792,21.832,19.376,19.368,47.54819922]
[1688273906407,21.828,19.379,19.368,47.54819922]
[1688273907502,21.828,19.379,19.368,14.872]
[1688273908107,21.828,19.379,19.361,21.847]
[1688273908108,62.98682803,19.378,19.361,21.847]
[1688273908410,78.046,19.373,19.358,10.83719922]
[1688273908611,78.046,19.373,19.359,14.87892]
[1688273908992,78.046,19.373,19.361,21.847]
[1688273909890,78.046,19.373,19.359,14.87892]
[1688273910500,78.046,19.373,19.36,21.849]
[1688273910698,78.046,19.373,19.359,36.72792]
[1688273911498,78.046,19.373,19.359,47.56511922]
[1688273912200,78.046,19.373,19.345,2.52060592]
[1688273912201,9.53,19.37,19.345,2.52060592]
[1688273912401,9.53,19.37,19.351,21.859]
[1688273912402,78.088,19.363,19.351,21.859]
[1688273912708,78.088,19.363,19.349,10.83719922]
[1688273912892,78.105,19.359,19.349,10.83719922]
[1688273913095,78.105,19.359,19.346,14.88892]
[1688273913096,180.744,19.359,19.346,14.88892]
[1688273913290,9.53,19.36,19.32,9.47]
[1688273913291,180.862,19.346,19.32,9.47]
[1688273913491,158.998,19.346,19.321,1.3682055]
[1688273913703,21.867,19.344,19.321,1.3682055]
[1688273914126,21.867,19.344,19.322,21.891]
[1688273914296,55.0,19.359,19.322,21.891]
[1688273914501,9.54,19.36,19.33,9.53]
[1688273914707,9.54,19.36,19.323,3.0]
[1688273914708,21.862,19.349,19.332,56.329]
[1688273914897,124.554,19.349,19.332,21.88]
[1688273915209,56.271,19.353,19.332,21.88]
[1688273915394,21.858,19.352,19.332,21.88]
[1688273916216,21.858,19.352,19.333,20.0]
[1688273916397,21.858,19.352,19.338,21.873]
[1688273916912,21.858,19.352,19.337,21.874]
[1688273918717,21.858,19.352,19.337,78.133]
[1688273918917,21.858,19.352,19.337,56.259]
[1688273919099,21.858,19.352,19.337,78.133]
[1688273919407,21.858,19.352,19.337,56.259]
[1688273919614,21.858,19.352,19.338,21.873]
[1688273919814,21.858,19.352,19.337,56.259]
[1688273920000,21.858,19.352,19.337,78.133]
[1688273920205,21.858,19.352,19.337,56.259]
[1688273920802,21.858,19.352,19.337,78.133]
[1688273923913,21.852,19.358,19.348,21.862]
[1688273924126,56.236,19.365,19.348,21.862]
[1688273924512,21.85,19.359,19.348,21.862]
[1688273924703,56.228,19.368,19.348,32.69919922]
[1688273924902,21.843,19.365,19.354,78.121]
[1688273925119,21.843,19.365,19.354,21.855]
[1688273926222,94.9313,19.371,19.354,32.69219922]
[1688273926520,21.844,19.365,19.354,21.855]
[1688273927123,21.844,19.365,19.354,32.69219922]
[1688273927321,21.844,19.365,19.353,21.856]
[1688273927525,21.844,19.365,19.344,102.715]
[1688273927526,21.844,19.365,19.354,21.855]
[1688273929520,9.53,19.36,19.33,9.53]
[1688273929723,2.99992183,19.368,19.336,56.318]
[1688273929724,21.859,19.351,19.336,56.318]
[1688273929913,21.859,19.351,19.337,20.0]
[1688273930111,21.859,19.351,19.337,21.874]
[1688273930821,30.09486358,19.351,19.32,9.53]
[1688273931025,64.45,19.35,19.325,21.888]
[1688273931205,180.895,19.343,19.325,21.888]
[1688273931530,180.895,19.343,19.325,32.72519922]
[1688273931706,180.895,19.343,19.324,102.823]
[1688273931707,180.895,19.343,19.33,21.881]
[1688273932427,21.868,19.343,19.33,21.881]
[1688273933231,21.868,19.343,19.33,32.71819922]
[1688273934731,21.868,19.343,19.33,42.19819922]
[1688273934933,56.283,19.349,19.33,42.19819922]
[1688273935127,21.867,19.344,19.33,42.19819922]
[1688273936010,21.867,19.344,19.33,21.881]
[1688273937211,21.867,19.344,19.329,56.299]
[1688273937816,21.867,19.344,19.329,78.183]
[1688273938924,30.10286358,19.344,19.329,56.299]
[1688273939135,180.93,19.339,19.329,56.299]
[1688273939512,180.93,19.339,19.319,32.73219922]
[1688273939513,4.81705,19.338,19.319,10.83719922]
[1688273939728,78.21,19.333,19.316,56.377]
[1688273941227,9.53,19.33,19.316,56.377]
[1688273941536,181.051,19.326,19.316,56.377]
[1688273941827,78.236,19.326,19.316,56.377]
[1688273943736,78.236,19.326,19.298,21.918]
[1688273943940,181.126,19.318,19.299,26.52591367]
[1688273944114,181.126,19.318,19.301,21.915]
[1688273944315,78.299,19.311,19.29,65.931]
[1688273944515,78.299,19.311,19.299,102.97]
[1688273945534,9.52,19.31,19.286,56.465]
[1688273945826,181.267,19.303,19.286,56.465]
[1688273946238,78.329,19.303,19.29,21.927]
[1688273946414,21.913,19.303,19.29,21.927]
[1688273946618,21.914,19.302,19.29,31.457]
[1688273946819,56.401,19.309,19.29,31.457]
[1688273947033,102.896,19.311,19.29,31.457]
[1688273947233,21.914,19.303,19.289,21.928]
[1688273947435,21.914,19.303,19.286,21.932]
[1688273947635,21.914,19.303,19.28,65.942]
[1688273948144,21.914,19.303,19.286,21.932]
[1688273948517,2.99992183,19.319,19.286,21.932]
[1688273948518,102.882,19.314,19.29,9.48]
[1688273948722,21.903,19.313,19.303,24.38062211]
[1688273949229,21.903,19.313,19.303,102.70862211]
[1688273949431,56.368,19.32,19.303,159.08962211]
[1688273949628,96.4266,19.324,19.303,159.08962211]
[1688273950130,21.895,19.32,19.303,80.76162211]
[1688273951330,21.895,19.32,19.303,102.67462211]
[1688273952838,21.895,19.32,19.304,20.0]
[1688273953043,21.895,19.32,19.306,21.909]
[1688273953340,21.895,19.32,19.307,20.0]
[1688273953542,21.895,19.32,19.309,21.906]
[1688273954544,21.895,19.32,19.307,20.0]
[1688273954742,21.895,19.32,19.305,20.0]
[1688273954933,21.895,19.32,19.304,56.411]
[1688273955132,21.895,19.32,19.303,80.76162211]
[1688273955732,26.76512,19.32,19.303,102.67462211]
[1688273956251,36.28512,19.32,19.303,102.67462211]
[1688273956826,36.28512,19.32,19.303,80.76162211]
[1688273958232,4.87012,19.319,19.303,80.76162211]
[1688273958439,181.16,19.315,19.303,80.76162211]
[1688273959043,181.16,19.315,19.303,56.381]
[1688273959849,181.29,19.301,19.285,21.933]
[1688273960146,181.29,19.301,19.279,21.94]
[1688273960147,64.52,19.3,19.279,21.94]
[1688273960351,21.924,19.294,19.279,21.94]
[1688273960544,21.924,19.294,19.277,82.74839248]
[1688273960545,21.924,19.294,19.285,56.484]
[1688273960851,21.924,19.294,19.272,26.50769299]
[1688273961252,21.924,19.294,19.269,103.117]
[1688273961440,21.924,19.294,19.273,21.946]
[1688273964239,21.924,19.294,19.272,25.60481453]
[1688273964240,21.924,19.294,19.28,21.939]
[1688273965254,21.924,19.294,19.275,56.496]
[1688273965556,21.924,19.294,19.279,21.94]
[1688273965853,21.924,19.294,19.28,20.0]
[1688273966043,21.924,19.294,19.282,21.936]
[1688273966352,21.924,19.294,19.28,20.0]
[1688273966558,21.924,19.294,19.282,21.937]
[1688273967251,78.366,19.294,19.275,184.99862338]
[1688273967456,78.366,19.294,19.282,21.937]
[1688273968048,21.924,19.294,19.282,43.873]
[1688273971155,21.924,19.294,19.282,21.937]
[1688273971339,21.924,19.294,19.282,43.874]
[1688273972263,21.924,19.294,19.282,21.937]
[1688273972567,21.924,19.294,19.282,32.77419922]
[1688273972953,21.924,19.294,19.282,54.71119922]
[1688273973568,21.924,19.294,19.286,21.932]
[1688273973865,21.924,19.294,19.282,21.937]
[1688273974056,21.924,19.294,19.283,21.935]
[1688273975058,21.924,19.294,19.282,21.937]
[1688273975453,21.924,19.294,19.283,21.935]
[1688273975649,21.914,19.302,19.289,21.929]
[1688273975958,102.914,19.308,19.29,40.36719922]
[1688273976157,21.915,19.302,19.295,21.922]
[1688273976963,4.87012,19.314,19.295,32.75919922]
[1688273977275,26.77212,19.314,19.301,21.915]
[1688273977449,26.77212,19.314,19.296,30.83719922]
[1688273977450,26.77212,19.314,19.296,10.83719922]
[1688273977651,26.77212,19.314,19.29,9.53]
[1688273977652,26.77212,19.314,19.295,56.443]
[1688273978154,9.53,19.31,19.273,56.501]
[1688273978357,181.305,19.299,19.275,21.944]
[1688273978659,181.305,19.299,19.276,10.83719922]
[1688273978853,181.305,19.299,19.277,56.491]
[1688273979178,9.52,19.3,19.278,21.941]
[1688273979179,181.37,19.292,19.278,21.941]
[1688273979661,181.37,19.292,19.278,32.77819922]
[1688273979856,21.926,19.292,19.278,32.77819922]
[1688273980073,21.926,19.292,19.278,21.941]
[1688273980258,21.926,19.292,19.279,10.83719922]
[1688273980463,21.926,19.292,19.28,20.0]
[1688273980770,21.926,19.292,19.279,21.94]
[1688273980771,21.926,19.292,19.279,10.83719922]
[1688273980971,21.926,19.292,19.273,91.508984]
[1688273981266,21.926,19.292,19.276,21.943]
[1688273981472,21.926,19.292,19.277,21.942]
[1688273981856,21.926,19.292,19.277,32.77919922]
[1688273982251,21.925,19.293,19.278,20.0]
[1688273982458,9.53,19.31,19.282,78.412]
[1688273982776,21.919,19.298,19.282,78.412]
[1688273982951,21.919,19.298,19.287,21.931]
[1688273983156,21.919,19.298,19.291,21.927]
[1688273983759,21.919,19.298,19.292,21.925]
[1688273984079,21.919,19.298,19.287,21.931]
[1688273984370,21.919,19.298,19.288,20.0]
[1688273984565,21.919,19.298,19.29,21.927]
[1688273984868,21.919,19.298,19.291,20.0]
[1688273985183,21.919,19.298,19.291,41.927]
[1688273985360,21.919,19.298,19.291,21.927]
[1688273985562,21.917,19.3,19.291,78.378]
[1688273985777,21.918,19.299,19.291,21.927]
[1688273985966,21.918,19.299,19.288,76.457]
[1688273985967,21.918,19.299,19.288,20.0]
[1688273986365,94.5055,19.309,19.288,20.0]
[1688273986566,94.5055,19.309,19.288,41.93]
[1688273986567,21.919,19.299,19.288,41.93]
[1688273986972,102.917,19.307,19.288,41.93]
[1688273987168,9.45,19.31,19.288,41.93]
[1688273987169,56.397,19.31,19.29,9.53]
[1688273987373,56.397,19.31,19.296,78.357]
[1688273988068,21.91,19.306,19.296,21.921]
[1688273989180,21.91,19.306,19.291,10.83719922]
[1688273989566,21.91,19.306,19.294,21.923]
[1688273990272,21.91,19.306,19.288,20.0]
[1688273990475,21.91,19.306,19.29,21.927]
[1688273990476,98.6434,19.305,19.29,21.927]
[1688273990665,21.916,19.301,19.288,20.0]
[1688273991176,21.916,19.301,19.288,41.93]
[1688273991686,21.916,19.301,19.288,52.76719922]
[1688273992072,21.916,19.301,19.289,10.83719922]
[1688273992376,21.915,19.302,19.292,21.925]
[1688273992580,56.403,19.308,19.292,21.925]
[1688273992774,20.75578541,19.32,19.293,10.83719922]
[1688273992775,21.915,19.302,19.293,10.83719922]
[1688273993081,21.915,19.302,19.294,21.923]
[1688273993377,21.915,19.302,19.293,10.83719922]
[1688273993378,21.915,19.302,19.293,21.924]
[1688273993775,21.915,19.302,19.29,20.0]
[1688273994077,21.915,19.302,19.291,21.926]
[1688273994582,21.915,19.302,19.291,32.76319922]
[1688273995184,21.915,19.302,19.291,21.926]
[1688273995373,21.915,19.302,19.29,21.927]
[1688273995577,21.915,19.302,19.287,67.26219922]
[1688273995878,21.915,19.302,19.288,20.0]
[1688273996277,21.915,19.302,19.29,21.927]
[1688273996978,21.915,19.302,19.29,32.76419922]
[1688273997369,21.915,19.302,19.291,10.83719922]
[1688273997568,94.588,19.308,19.294,21.923]
[1688273997780,21.911,19.306,19.294,21.923]
[1688273998682,21.911,19.306,19.288,20.0]
[1688273998873,21.911,19.306,19.291,21.926]
[1688273999177,21.911,19.306,19.292,21.926]
[1688273999382,21.911,19.306,19.292,32.76319922]
[1688274000979,21.911,19.306,19.292,21.926]
[1688274001182,21.911,19.306,19.287,56.425]
[1688274001368,20.0,19.305,19.284,10.83719922]
[1688274001567,181.306,19.299,19.284,32.77219922]
[1688274001780,99.6514,19.298,19.284,62.91906222]
[1688274002078,21.924,19.294,19.284,30.146863]
[1688274002780,21.924,19.294,19.284,52.081863]
[1688274002981,21.924,19.294,19.284,62.91906222]
[1688274003181,21.923,19.295,19.284,62.91906222]
[1688274003378,21.922,19.296,19.285,30.83719922]
[1688274003577,56.423,19.301,19.288,21.93]
[1688274003881,99.0991,19.307,19.284,30.146863]
[1688274003882,99.0991,19.307,19.294,21.923]
[1688274004087,21.913,19.304,19.294,21.923]
[1688274004472,56.387,19.313,19.294,135.74519922]
[1688274004672,9.52,19.32,19.294,135.74519922]
[1688274004673,21.909,19.307,19.295,10.83719922]
[1688274004873,21.909,19.307,19.297,21.92]
[1688274005182,21.909,19.307,19.298,20.0]
[1688274005374,21.909,19.307,19.298,41.918]
[1688274005684,21.909,19.307,19.298,20.0]
[1688274005890,21.909,19.307,19.295,10.83719922]
[1688274006189,21.909,19.307,19.294,56.445]
[1688274006369,21.909,19.307,19.288,10.83719922]
[1688274006572,181.286,19.301,19.289,20.0]
[1688274006785,181.286,19.301,19.289,41.929]
[1688274006981,78.338,19.301,19.289,52.76619922]
[1688274007189,78.338,19.301,19.289,30.83719922]
[1688274007386,78.338,19.301,19.289,21.928]
[1688274007573,90.5587,19.306,19.289,32.76519922]
[1688274007775,102.887,19.313,19.29,20.36719922]
[1688274008092,56.387,19.313,19.298,21.918]
[1688274008297,90.5587,19.318,19.298,21.918]
[1688274008298,21.906,19.31,19.298,21.918]
[1688274008594,21.906,19.31,19.299,20.0]
[1688274008793,21.906,19.31,19.293,56.444]
[1688274008974,21.906,19.31,19.297,56.393]
[1688274009175,21.906,19.31,19.298,20.0]
[1688274009593,21.906,19.31,19.298,41.918]
[1688274009888,21.906,19.31,19.297,56.393]
[1688274010089,21.906,19.31,19.298,21.918]
[1688274010476,21.906,19.31,19.297,67.23019922]
[1688274010477,21.906,19.31,19.301,21.914]
[1688274010890,21.906,19.31,19.297,56.431]
[1688274010891,21.906,19.31,19.297,159.358]
[1688274011091,90.5587,19.318,19.302,21.914]
[1688274011092,21.904,19.312,19.302,21.914]
[1688274011287,146.9317,19.318,19.303,55.0]
[1688274011494,21.901,19.314,19.307,21.908]
[1688274011985,90.5587,19.318,19.31,21.904]
[1688274012183,159.211,19.321,19.309,21.906]
[1688274012383,21.899,19.316,19.31,76.904]
[1688274012579,21.9,19.315,19.311,76.904]
[1688274012795,21.9,19.315,19.31,76.904]
[1688274013382,21.9,19.315,19.302,159.359]
[1688274013581,21.9,19.315,19.305,32.74719922]
[1688274013795,21.9,19.315,19.306,55.0]
[1688274013996,21.9,19.315,19.308,21.907]
[1688274014188,21.899,19.316,19.308,21.907]
[1688274014382,102.846,19.321,19.309,20.0]
[1688274014595,56.362,19.322,19.309,20.0]
[1688274014596,56.362,19.322,19.312,21.903]
[1688274015095,56.362,19.322,19.313,55.0]
[1688274015299,21.897,19.318,19.313,21.901]
[1688274015496,94.4129,19.329,19.314,55.0]
[1688274015792,2.99992183,19.35,19.318,21.896]
[1688274015793,102.725,19.343,19.318,21.896]
[1688274015996,27.04339407,19.334,19.324,78.243]
[1688274016202,21.867,19.344,19.325,75.0]
[1688274016403,56.272,19.353,19.33,190.536]
[1688274016707,102.658,19.356,19.338,21.873]
[1688274016885,21.862,19.349,19.344,21.867]
[1688274017079,95.7184,19.359,19.345,55.0]
[1688274017280,21.857,19.353,19.339,10.83719922]
[1688274017484,21.857,19.353,19.34,55.0]
[1688274017685,21.857,19.353,19.344,21.866]
[1688274017892,21.857,19.353,19.34,55.0]
[1688274017893,21.857,19.353,19.345,55.0]
[1688274018091,21.857,19.353,19.343,21.867]
[1688274018289,21.857,19.353,19.344,76.866]
[1688274018491,21.857,19.353,19.345,55.0]
[1688274018685,21.857,19.353,19.347,21.863]
[1688274018886,21.857,19.353,19.34,55.0]
[1688274019090,21.857,19.353,19.341,21.869]
[1688274019287,21.857,19.353,19.34,55.0]
[1688274019288,21.857,19.353,19.342,55.0]
[1688274019493,21.857,19.353,19.34,55.0]
[1688274020694,21.857,19.353,19.34,76.871]
[1688274020892,21.857,19.353,19.342,21.868]
[1688274021093,21.857,19.353,19.343,55.0]
[1688274021308,21.857,19.353,19.34,55.0]
[1688274021505,21.857,19.353,19.341,21.869]
[1688274021689,21.857,19.353,19.34,55.0]
[1688274022107,9.52,19.35,19.326,56.347]
[1688274022312,9.52,19.35,19.333,21.878]
[1688274022313,21.868,19.343,19.333,21.878]
[1688274023109,21.868,19.343,19.332,56.298]
[1688274023494,180.928,19.339,19.322,21.891]
[1688274023690,180.928,19.339,19.323,21.89]
[1688274024112,180.928,19.339,19.323,78.247]
[1688274024113,21.872,19.339,19.323,78.247]
[1688274024310,78.183,19.339,19.323,78.247]
[1688274024709,78.183,19.339,19.324,10.83719922]
[1688274024906,21.872,19.339,19.328,21.884]
[1688274025310,21.872,19.339,19.329,10.83719922]
[1688274025614,8.24191661,19.349,19.33,21.882]
[1688274025799,92.697,19.357,19.33,31.412]
[1688274025996,56.237,19.365,19.34,9.53]
[1688274026202,21.851,19.359,19.347,21.863]
[1688274026711,21.851,19.359,19.347,32.70019922]
[1688274026910,56.24,19.364,19.347,32.70019922]
[1688274026911,21.827,19.38,19.368,21.839]
[1688274027098,2.99992183,19.399,19.355,3.0]
[1688274027099,92.697,19.396,19.369,55.0]
[1688274027298,56.153,19.394,19.372,21.834]
[1688274027624,117.29579,19.395,19.37,9.53]
[1688274027625,21.815,19.391,19.378,21.828]
[1688274028605,14.84479,19.395,19.379,55.0]
[1688274028806,21.814,19.391,19.379,21.827]
[1688274029307,14.79111,19.394,19.379,21.827]
[1688274029508,14.79111,19.394,19.38,55.0]
[1688274029713,56.124,19.404,19.384,78.0]
[1688274029910,151.9176,19.407,19.385,75.0]
[1688274030218,95.8036,19.407,19.391,21.813]
[1688274030595,21.799,19.404,19.385,55.0]
[1688274030803,21.799,19.404,19.388,21.817]
[1688274031023,21.799,19.404,19.389,75.0]
[1688274031402,4.10869,19.403,19.384,10.83719922]
[1688274031607,4.10869,19.403,19.385,20.0]
[1688274031608,77.948,19.398,19.385,20.0]
[1688274031805,77.948,19.398,19.376,20.0]
[1688274032009,77.948,19.398,19.371,102.575]
[1688274032010,77.948,19.398,19.377,21.829]
[1688274032228,21.803,19.401,19.378,20.0]
[1688274032521,94.36652183,19.419,19.378,20.0]
[1688274032522,21.807,19.398,19.385,21.82]
[1688274032820,21.807,19.398,19.387,21.818]
[1688274033024,21.807,19.398,19.388,20.0]
[1688274033209,102.396,19.405,19.388,20.0]
[1688274033210,56.098,19.413,19.391,124.284]
[1688274033411,56.104,19.411,19.392,55.0]
[1688274033606,21.796,19.407,19.397,21.806]
[1688274033813,21.796,19.407,19.398,55.0]
[1688274034013,193.6926,19.419,19.4,21.803]
[1688274034212,21.789,19.414,19.401,55.0]
[1688274034414,21.789,19.414,19.396,102.442]
[1688274034718,21.789,19.414,19.4,21.803]
[1688274034922,21.789,19.414,19.38,9.5]
[1688274035123,21.789,19.414,19.386,56.172]
[1688274035306,77.916,19.406,19.387,20.0]
[1688274035506,20.798,19.406,19.391,21.813]
[1688274036324,4.10869,19.413,19.391,21.813]
[1688274036528,4.10869,19.413,19.392,20.0]
[1688274036706,21.793,19.41,19.398,21.806]
[1688274036909,21.793,19.41,19.386,102.494]
[1688274037222,25.89769,19.413,19.397,180.386]
[1688274037527,102.31,19.422,19.397,180.386]
[1688274037528,56.078,19.42,19.398,20.0]
[1688274037725,21.79,19.413,19.403,21.799]
[1688274038226,21.79,19.413,19.402,21.801]
[1688274038525,77.886,19.413,19.398,20.0]
[1688274038729,77.886,19.413,19.394,76.149]
[1688274038919,77.886,19.413,19.396,21.807]
[1688274039246,21.79,19.413,19.398,102.347]
[1688274039828,21.79,19.413,19.398,124.152]
[1688274040119,21.79,19.413,19.399,20.0]
[1688274040303,21.79,19.413,19.399,41.804]
[1688274041114,21.79,19.413,19.399,21.804]
[1688274041631,4.10869,19.412,19.398,102.347]
[1688274041809,77.923,19.404,19.384,158.683]
[1688274042127,21.8,19.404,19.394,21.79]
[1688274042626,21.8,19.404,19.383,102.51]
[1688274042627,21.8,19.404,19.39,21.814]
[1688274042827,21.8,19.404,19.378,102.538]
[1688274043133,21.8,19.404,19.39,56.119]
[1688274043321,21.8,19.404,19.393,21.811]
[1688274046520,21.797,19.407,19.393,21.811]
[1688274046723,99.5808,19.411,19.393,21.811]
[1688274046724,21.799,19.405,19.393,21.811]
[1688274047610,21.799,19.405,19.39,7.72132]
[1688274048230,77.938,19.4,19.39,7.72132]
[1688274048931,21.804,19.4,19.391,10.83719922]
[1688274049122,21.797,19.407,19.393,21.811]
[1688274049432,8.25176977,19.423,19.394,30.83719922]
[1688274049638,21.796,19.407,19.394,86.98519922]
[1688274049817,21.796,19.407,19.39,7.72132]
[1688274050016,25.90469,19.407,19.392,21.812]
[1688274050722,21.794,19.409,19.393,65.83719922]
[1688274051034,21.794,19.409,19.397,21.806]
[1688274051236,21.794,19.409,19.394,20.0]
[1688274051237,21.794,19.409,19.398,20.0]
[1688274051533,4.10869,19.408,19.398,20.0]
[1688274051738,21.798,19.405,19.398,20.0]
[1688274052035,21.798,19.405,19.397,20.0]
[1688274052214,21.798,19.405,19.397,21.806]
[1688274052411,21.798,19.405,19.398,41.805]
[1688274052625,99.6426,19.418,19.398,41.805]
[1688274052626,56.097,19.413,19.398,41.805]
[1688274053030,21.794,19.409,19.398,41.805]
[1688274055234,21.794,19.409,19.398,20.0]
[1688274055429,59.10869,19.408,19.393,56.151]
[1688274055733,21.796,19.407,19.398,21.805]
[1688274055918,21.796,19.407,19.392,56.154]
[1688274055919,25.90469,19.407,19.392,56.154]
[1688274056118,25.90469,19.407,19.397,21.806]
[1688274056334,25.90469,19.407,19.392,56.154]
[1688274056527,59.10869,19.406,19.394,21.809]
[1688274056731,21.801,19.403,19.39,7.72132]
[1688274056932,21.801,19.403,19.393,21.81]
[1688274057931,21.801,19.403,19.39,7.72132]
[1688274058118,21.801,19.403,19.392,21.812]
[1688274058320,161.50069,19.406,19.384,21.821]
[1688274058321,180.374,19.399,19.384,21.821]
[1688274058538,180.374,19.399,19.389,21.815]
[1688274058539,21.805,19.399,19.389,21.815]
[1688274058719,21.805,19.399,19.38,124.35]
[1688274058916,55.0,19.398,19.38,21.826]
[1688274059131,21.812,19.393,19.381,10.83719922]
[1688274059436,21.812,19.393,19.381,21.825]
[1688274059624,56.127,19.403,19.381,21.825]
[1688274059820,56.127,19.403,19.382,20.0]
[1688274060020,21.805,19.399,19.388,77.984]
[1688274060230,102.398,19.405,19.388,77.984]
[1688274060431,21.805,19.399,19.388,77.984]
[1688274060719,21.805,19.399,19.388,21.817]
[1688274061119,21.805,19.399,19.387,21.818]
[1688274061425,59.16559,19.404,19.382,78.008]
[1688274061426,55.0,19.404,19.388,21.817]
[1688274061629,21.807,19.397,19.388,21.817]
[1688274062029,99.6426,19.418,19.399,10.83719922]
[1688274062230,99.6426,19.418,19.402,180.341]
[1688274062540,89.11564277,19.418,19.403,20.0]
[1688274062741,56.10901001,19.418,19.407,180.29]
[1688274063037,56.10901001,19.418,19.412,180.245]
[1688274063038,31.2432372,19.418,19.412,180.245]
[1688274063235,21.761,19.439,19.419,10.83719922]
[1688274063438,55.99,19.45,19.428,77.824]
[1688274063637,2.99992183,19.468,19.43,9.5]
[1688274063842,21.744,19.453,19.436,21.763]
[1688274064062,14.7345,19.452,19.436,21.763]
[1688274064335,21.751,19.448,19.426,102.284]
[1688274064541,21.751,19.448,19.431,21.768]
[1688274064841,14.7345,19.452,19.431,21.768]
[1688274065141,102.093,19.463,19.439,179.992]
[1688274065321,21.741,19.457,19.446,21.751]
[1688274065523,21.741,19.457,19.435,56.032]